Workbook

Sheet testo
G2: AVVERTENZA: quando si esegue la cluster analysis e si seleziona il dataset di input occorre selezionare anche la colonna delle etichette di riga e la prima riga (nomi delle variabili)
B27: Criterio di Calinski Harabasz
B28: Si sceglie il valore di k che massimizza il rapporto tra
B32: dove B e W sono rispettivamente la DEVfra complessiva e la DEVnei complessiva

Sheet dati
A1: Data base originario | L1: n= | M1: 22
A2: marca | B2: tipo | C2: prezzo | D2: calcio | E2: Z_prezzo | F2: Z_calcio | G2: k=2 | H2: k=3 | I2: k=4
A3: Fiuggi | B3: O | C3: 0.85 | D3: 15.9 | E3: =(C3-C$25)/C$26 -> 2.04959579 | F3: =(D3-D$25)/D$26 -> -0.6796519574 | G3: 1 | H3: 1 | I3: 1 | L3: Etichette di riga | M3: Varianza di Z_prezzo | N3: Varianza di Z_calcio | V3: Etichette di riga | W3: Varianza di Z_prezzo | X3: Varianza di Z_calcio | AE3: Etichette di riga | AF3: Varianza di Z_prezzo | AG3: Varianza di Z_calcio
A4: Rocchetta | B4: O | C4: 0.81 | D4: 57 | E4: 1.84556363 | F4: -0.2857000747 | G4: 1 | H4: 1 | I4: 1 | L4: 1 | M4: 0.6640836187 | N4: 1.524870267 | V4: 1 | W4: 0.02081456118 | X4: 0.07759904293 | AE4: 1 | AF4: 0.02081456118 | AG4: 0.07759904293
A5: Panna | B5: O | C5: 0.42 | D5: 30.2 | E5: -0.143749931 | F5: -0.5425835408 | G5: 2 | H5: 3 | I5: 3 | L5: 2 | M5: 0.3360808254 | N5: 0.1623770343 | V5: 2 | W5: 0.5429131375 | X5: 0.6188349989 | AE5: 2 | AF5: 0.2523765543 | AG5: 0.4649119241
A6: S.Benedetto | B6: O | C6: 0.44 | D6: 46 | E6: -0.04173385093 | F6: -0.3911373182 | G6: 2 | H6: 3 | I6: 3 | L6: Totale complessivo | M6: 1 | N6: 1 | V6: 3 | W6: 0.3512457199 | X6: 0.2092243511 | AE6: 3 | AF6: 0.3722604211 | AG6: 0.03540694595
A7: Fabia | B7: O | C7: 0.35 | D7: 133.9 | E7: -0.5008062112 | F7: 0.4514021097 | G7: 2 | H7: 3 | I7: 4 | V7: Totale complessivo | W7: 1 | X7: 1 | AE7: 4 | AF7: 0.09951962065 | AG7: 1.180049344
A8: Fonteviva | B8: O | C8: 0.3 | D8: 7.48 | E8: -0.7558464114 | F8: -0.7603593747 | G8: 2 | H8: 3 | I8: 3 | AE8: Totale complessivo | AF8: 1 | AG8: 1
A9: Conad Lieta | B9: O | C9: 0.29 | D9: 39.5 | E9: -0.8068544514 | F9: -0.453441144 | G9: 2 | H9: 3 | I9: 3
A10: S.Bernardo | B10: O | C10: 0.5 | D10: 10 | E10: 0.2643143893 | F10: -0.7362046607 | G10: 2 | H10: 3 | I10: 3 | L10: Etichette di riga | M10: Conteggio di marca | N10: Media di Z_prezzo | O10: Media di Z_calcio | V10: Etichette di riga | W10: Conteggio di marca | X10: Media di Z_prezzo | Y10: Media di Z_calcio | AE10: Etichette di riga | AF10: Conteggio di marca | AG10: Media di Z_prezzo | AH10: Media di Z_calcio
A11: Guizza Caudana | B11: O | C11: 0.19 | D11: 8.36 | E11: -1.316934852 | F11: -0.7519243952 | G11: 2 | H11: 3 | I11: 3 | L11: 1 | M11: 7 | N11: 1.095016755 | O11: 0.9658536992 | V11: 1 | W11: 2 | X11: 1.94757971 | Y11: -0.482676016 | AE11: 1 | AF11: 2 | AG11: 1.94757971 | AH11: -0.482676016
A12: Levissima | B12: O | C12: 0.44 | D12: 19.5 | E12: -0.04173385093 | F12: -0.6451452231 | G12: 2 | H12: 3 | I12: 3 | L12: 2 | M12: 15 | N12: -0.5110078192 | O12: -0.4507317263 | V12: 2 | W12: 4 | X12: 0.8764108696 | Y12: 1.804114018 | AE12: 2 | AF12: 3 | AG12: 1.18245911 | AH12: 1.52622298
A13: Vera | B13: O | C13: 0.4 | D13: 36 | E13: -0.2457660111 | F13: -0.4869893578 | G13: 2 | H13: 3 | I13: 3 | L13: Totale complessivo | M13: 22 | N13: -2.214137964e-16 | O13: -1.513940488e-17 | V13: 3 | W13: 16 | X13: -0.4625501812 | Y13: -0.3906940025 | AE13: 3 | AF13: 13 | AG13: -0.5478905559 | AH13: -0.5884155622
A14: Fontealta | B14: O | C14: 0.5 | D14: 4.8 | E14: 0.2643143893 | F14: -0.7860477213 | G14: 2 | H14: 3 | I14: 3 | V14: Totale complessivo | W14: 22 | X14: -2.245678391e-16 | Y14: -7.065055611e-17 | AE14: 4 | AF14: 4 | AG14: -0.07998988096 | AH14: 1.00902135
A15: Norda | B15: O | C15: 0.2 | D15: 7.9 | E15: -1.265926812 | F15: -0.756333589 | G15: 2 | H15: 3 | I15: 3 | AE15: Totale complessivo | AF15: 22 | AG15: -2.188905622e-16 | AH15: -2.018587318e-17
A16: Conad Flaminia | B16: O | C16: 0.35 | D16: 72 | E16: -0.5008062112 | F16: -0.1419220153 | G16: 2 | H16: 3 | I16: 3 | M16: Prezzo | N16: Calcio | W16: Prezzo | X16: Calcio | AF16: Prezzo | AG16: Calcio
A17: Pejo | B17: O | C17: 0.25 | D17: 18.1 | E17: -1.010886612 | F17: -0.6585645087 | G17: 2 | H17: 3 | I17: 3 | L17: VARnei= | M17: =SUM(M4:M5*($M11:$M12-1))/(n-1) -> 0.4137920603 | N17: =SUM(N4:N5*($M11:$M12-1))/(n-1) -> 0.5439285755 | V17: VARnei= | W17: =SUM(W4:W6*($W11:$W13-1))/(n-1) -> 0.3294399892 | X17: =SUM(X4:X6*($W11:$W13-1))/(n-1) -> 0.2415461574 | AE17: VARnei= | AF17: =SUM(AF4:AF7*($AF11:$AF14-1))/(n-1) -> 0.2519643612 | AG17: =SUM(AG4:AG7*($AF11:$AF14-1))/(n-1) -> 0.2367835369
A18: Guizza | B18: O | C18: 0.15 | D18: 30.6 | E18: -1.520967012 | F18: -0.5387494592 | G18: 2 | H18: 3 | I18: 3 | L18: Varfra= | M18: =SUM((N11:N12)^2*$M11:$M12)/(n-1) -> 0.5862079397 | N18: =SUM((O11:O12)^2*$M11:$M12)/(n-1) -> 0.4560714245 | V18: Varfra= | W18: =SUM((X11:X13)^2*$W11:$W13)/(n-1) -> 0.6705600108 | X18: =SUM((Y11:Y13)^2*$W11:$W13)/(n-1) -> 0.7584538426 | AE18: Varfra= | AF18: =SUM((AG11:AG14)^2*($AF11:$AF14))/(n-1) -> 0.7480356388 | AG18: =SUM((AH11:AH14)^2*($AF11:$AF14))/(n-1) -> 0.7632164631
A19: Aura | B19: O | C19: 0.44 | D19: 132.4 | E19: -0.04173385093 | F19: 0.4370243037 | G19: 2 | H19: 3 | I19: 4 | L19: Vartot | M19: =SUM(M17:M18) -> 1 | N19: =SUM(N17:N18) -> 1 | V19: Vartot | W19: =SUM(W17:W18) -> 1 | X19: =SUM(X17:X18) -> 1 | AE19: Vartot | AF19: =SUM(AF17:AF18) -> 1 | AG19: =SUM(AG17:AG18) -> 1
A20: S.Gemini | B20: M | C20: 0.79 | D20: 328.1 | E20: 1.74354755 | F20: 2.312848718 | G20: 1 | H20: 2 | I20: 2
A21: S.Pellegrino | B21: M | C21: 0.6 | D21: 208 | E21: 0.7743947896 | F21: 1.161665723 | G21: 1 | H21: 2 | I21: 2 | M21: Prezzo | N21: Calcio | W21: Prezzo | X21: Calcio | AF21: Prezzo | AG21: Calcio
A22: Gaudianello | B22: M | C22: 0.5 | D22: 140 | E22: 0.2643143893 | F22: 0.5098718538 | G22: 1 | H22: 3 | I22: 4 | L22: DEVnei | M22: =M17*(n-1) -> 8.689633267 | N22: =N17*(n-1) -> 11.42250009 | O22: =SUM(M22:N22) -> 20.11213335 | P22: DEVnei complessiva (W) | V22: DEVnei | W22: =W17*(n-1) -> 6.918239773 | X22: =X17*(n-1) -> 5.072469306 | Y22: =SUM(W22:X22) -> 11.99070908 | Z22: DEVnei complessiva (W) | AE22: DEVnei | AF22: =AF17*(n-1) -> 5.291251586 | AG22: =AG17*(n-1) -> 4.972454274 | AH22: =SUM(AF22:AG22) -> 10.26370586 | AI22: Devnei complessiva (W)
A23: Ferrarelle | B23: M | C23: 0.44 | D23: 362 | E23: -0.04173385093 | F23: 2.637787132 | G23: 1 | H23: 2 | I23: 4 | L23: DEVfra | M23: =M18*(n-1) -> 12.31036673 | N23: =N18*(n-1) -> 9.577499915 | O23: =SUM(M23:N23) -> 21.88786665 | P23: DEVfra complessiva (B) | V23: DEVfra | W23: =W18*(n-1) -> 14.08176023 | X23: =X18*(n-1) -> 15.92753069 | Y23: =SUM(W23:X23) -> 30.00929092 | Z23: DEVfra complessiva (B) | AE23: DEVfra | AF23: =AF18*(n-1) -> 15.70874841 | AG23: =AG18*(n-1) -> 16.02754573 | AH23: =SUM(AF23:AG23) -> 31.73629414 | AI23: DEVfra complessiva (B)
A24: Uliveto | B24: M | C24: 0.65 | D24: 202 | E24: 1.02943499 | F24: 1.104154499 | G24: 1 | H24: 2 | I24: 2 | L24: DEVtot | M24: =SUM(M22:M23) -> 21 | N24: =SUM(N22:N23) -> 21 | O24: =SUM(O22:O23) -> 42 | V24: DEVtot | W24: =SUM(W22:W23) -> 21 | X24: =SUM(X22:X23) -> 21 | Y24: =SUM(Y22:Y23) -> 42 | AE24: DEVtot | AF24: =SUM(AF22:AF23) -> 21 | AG24: =SUM(AG22:AG23) -> 21 | AH24: =SUM(AH22:AH23) -> 42
B25: Media | C25: =AVERAGE(C3:C24) -> 0.4481818182 | D25: =AVERAGE(D3:D24) -> 86.80636364 | E25: =AVERAGE(E3:E24) -> -2.422304781e-16 | F25: =AVERAGE(F3:F24) -> 0 | L25: R2 | M25: =M23/M24 -> 0.5862079397 | N25: =N23/N24 -> 0.4560714245 | O25: =AVERAGE(M25:N25) -> 0.5211396821 | P25: R2 complessivo | V25: R2 | W25: =W23/W24 -> 0.6705600108 | X25: =X23/X24 -> 0.7584538426 | Y25: =AVERAGE(W25:X25) -> 0.7145069267 | Z25: R2 complessivo | AE25: R2 | AF25: =AF23/AF24 -> 0.7480356388 | AG25: =AG23/AG24 -> 0.7632164631 | AH25: =AVERAGE(AF25:AG25) -> 0.755626051 | AI25: R2 complessivo
B26: sigma | C26: =STDEV(C3:C24) -> 0.1960475249 | D26: =STDEV(D3:D24) -> 104.3274618 | E26: =STDEV(E3:E24) -> 1 | F26: =STDEV(F3:F24) -> 1
X32: k=2 | Y32: k=3 | Z32: k=4
W33: R2 | X33: =O25 -> 0.5211396821 | Y33: =Y25 -> 0.7145069267 | Z33: =AH25 -> 0.755626051
M39: R2 = 1- W/T = B/T
M41: R2= | N41: =1-O22/O24 -> 0.5211396821
D42: R2 si può ottenere anche attraverso la funzione REGR.LIN
E43: k=2 | F43: v.dicotomica | H43: VAR DIPENDENTE PREZZO | L43: VAR DIPENDENTE CALCIO
E44: 1 | F44: =IF(E44=1,1,0) -> 1 | H44: =LINEST(C3:C24,F44:F65,1,1) -> 0.3148571429 | I44: 0.348 | L44: =LINEST(D3:D24,F44:F65,1,1) -> 147.7887619 | M44: 39.78266667
E45: 1 | F45: =IF(E45=1,1,0) -> 1 | H45: 0.05915123014 | I45: 0.03336579372 | L45: 36.08950452 | M45: 20.35722605
E46: 2 | F46: 0 | G46: R2 | H46: 0.5862079397 | I46: 0.1292251634 | L46: 0.4560714245 | M46: 78.84319748
E47: 2 | F47: 0 | H47: 28.33345517 | I47: 20 | L47: 16.76953354 | M47: 20
E48: 2 | F48: 0 | H48: 0.4731444156 | I48: 0.3339828571 | L48: 104243.6093 | M48: 124324.9958
E49: 2 | F49: 0 | W49: La curva di R2 mostra un salto notevole passando da una soluzione con 2 gruppi ad una con 3 gruppi.
E50: 2 | F50: 0
E51: 2 | F51: 0 | W51: Entrambe le soluzioni con k=3 e k=4 sembrano accettabili
E52: 2 | F52: 0 | M52: Implementazione criterio di Calinski Harabasz
E53: 2 | F53: 0 | M53: 2 | N53: 3 | O53: 4
E54: 2 | F54: 0 | M54: ="k="&M53 -> k=2 | N54: ="k="&N53 -> k=3 | O54: k=4
E55: 2 | F55: 0 | L55: W | M55: =O22 -> 20.11213335 | N55: =Y22 -> 11.99070908 | O55: =AH22 -> 10.26370586
E56: 2 | F56: 0 | L56: B | M56: =O23 -> 21.88786665 | N56: =Y23 -> 30.00929092 | O56: =AH23 -> 31.73629414
E57: 2 | F57: 0 | M57: =M56*(n-M53)/(M55*(M53-1)) -> 21.76583286 | N57: =N56*(n-N53)/(N55*(N53-1)) -> 23.77576354 | O57: =O56*(n-O53)/(O55*(O53-1)) -> 18.55253526
E58: 2 | F58: 0
E59: 2 | F59: 0 | L59: L'indice di Calinski Harabasz segnala che il numero ottimo di gruppi è pari a 3
E60: 2 | F60: 0
E61: 1 | F61: 1 | L61: Si noti che i valori dell'allocazione per k=3 e k=4 ottenuti dalla macro kmeans sono diversi da quelli ottenuti in MATLAB tramite la funzione kmens
E62: 1 | F62: 1
E63: 1 | F63: 1
E64: 1 | F64: 1
E65: 1 | F65: 1

Sheet k=2
A1: Nome riga | B1: Gruppo
A2: Fiuggi | B2: 1 | C2: =B2&A2 -> 1Fiuggi
A3: Rocchetta | B3: 1 | C3: =B3&A3 -> 1Rocchetta
A4: Panna | B4: 2 | C4: 2Panna
A5: S.Benedetto | B5: 2 | C5: 2S.Benedetto
A6: Fabia | B6: 2 | C6: 2Fabia
A7: Fonteviva | B7: 2 | C7: 2Fonteviva
A8: Conad Lieta | B8: 2 | C8: 2Conad Lieta
A9: S.Bernardo | B9: 2 | C9: 2S.Bernardo
A10: Guizza Caudana | B10: 2 | C10: 2Guizza Caudana
A11: Levissima | B11: 2 | C11: 2Levissima
A12: Vera | B12: 2 | C12: 2Vera
A13: Fontealta | B13: 2 | C13: 2Fontealta
A14: Norda | B14: 2 | C14: 2Norda
A15: Conad Flaminia | B15: 2 | C15: 2Conad Flaminia
A16: Pejo | B16: 2 | C16: 2Pejo
A17: Guizza | B17: 2 | C17: 2Guizza
A18: Aura | B18: 2 | C18: 2Aura
A19: S.Gemini | B19: 1 | C19: 1S.Gemini
A20: S.Pellegrino | B20: 1 | C20: 1S.Pellegrino
A21: Gaudianello | B21: 1 | C21: 1Gaudianello
A22: Ferrarelle | B22: 1 | C22: 1Ferrarelle
A23: Uliveto | B23: 1 | C23: 1Uliveto
B25: prezzo | C25: calcio
A26: Centroide 1 | B26: 1.095016755 | C26: 0.9658536992 | E26: I centroidi calcolati sui dati standardizzati devono essere riportati nella scala originaria
A27: Centroide 2 | B27: -0.5110078192 | C27: -0.4507317263
A31: Centroide 1 | B31: =B26*dati!C$26+dati!C$25 -> 0.6628571429 | C31: =C26*dati!D$26+dati!D$25 -> 187.5714286 | E31: Centroidi sulla scala originaria
A32: Centroide 2 | B32: =B27*dati!C$26+dati!C$25 -> 0.348 | C32: =C27*dati!D$26+dati!D$25 -> 39.78266667

Sheet k=3
A1: Nome riga | B1: Gruppo
A2: Fiuggi | B2: 1 | C2: =B2&A2 -> 1Fiuggi
A3: Rocchetta | B3: 1 | C3: =B3&A3 -> 1Rocchetta
A4: Panna | B4: 3 | C4: 3Panna
A5: S.Benedetto | B5: 3 | C5: 3S.Benedetto
A6: Fabia | B6: 3 | C6: 3Fabia
A7: Fonteviva | B7: 3 | C7: 3Fonteviva
A8: Conad Lieta | B8: 3 | C8: 3Conad Lieta
A9: S.Bernardo | B9: 3 | C9: 3S.Bernardo
A10: Guizza Caudana | B10: 3 | C10: 3Guizza Caudana
A11: Levissima | B11: 3 | C11: 3Levissima
A12: Vera | B12: 3 | C12: 3Vera
A13: Fontealta | B13: 3 | C13: 3Fontealta
A14: Norda | B14: 3 | C14: 3Norda
A15: Conad Flaminia | B15: 3 | C15: 3Conad Flaminia
A16: Pejo | B16: 3 | C16: 3Pejo
A17: Guizza | B17: 3 | C17: 3Guizza
A18: Aura | B18: 3 | C18: 3Aura
A19: S.Gemini | B19: 2 | C19: 2S.Gemini
A20: S.Pellegrino | B20: 2 | C20: 2S.Pellegrino
A21: Gaudianello | B21: 3 | C21: 3Gaudianello
A22: Ferrarelle | B22: 2 | C22: 2Ferrarelle
A23: Uliveto | B23: 2 | C23: 2Uliveto
B25: prezzo | C25: calcio
A26: C1 | B26: 1.94757971 | C26: -0.482676016 | E26: I centroidi calcolati sui dati standardizzati devono essere riportati nella scala originaria
A27: C2 | B27: 0.8764108696 | C27: 1.804114018
A28: C3 | B28: -0.4625501812 | C28: -0.3906940025
A31: Centroide 1 | B31: =B26*dati!C$26+dati!C$25 -> 0.83 | C31: =C26*dati!D$26+dati!D$25 -> 36.45 | E31: Centroidi sulla scala originaria
A32: Centroide 2 | B32: =B27*dati!C$26+dati!C$25 -> 0.62 | C32: =C27*dati!D$26+dati!D$25 -> 275.025
A33: Centroide 3 | B33: =B28*dati!C$26+dati!C$25 -> 0.3575 | C33: =C28*dati!D$26+dati!D$25 -> 46.04625

Sheet k=4
A1: Nome riga | B1: Gruppo
A2: Fiuggi | B2: 1
A3: Rocchetta | B3: 1
A4: Panna | B4: 3
A5: S.Benedetto | B5: 3
A6: Fabia | B6: 4
A7: Fonteviva | B7: 3
A8: Conad Lieta | B8: 3
A9: S.Bernardo | B9: 3
A10: Guizza Caudana | B10: 3
A11: Levissima | B11: 3
A12: Vera | B12: 3
A13: Fontealta | B13: 3
A14: Norda | B14: 3
A15: Conad Flaminia | B15: 3
A16: Pejo | B16: 3
A17: Guizza | B17: 3
A18: Aura | B18: 4
A19: S.Gemini | B19: 2
A20: S.Pellegrino | B20: 2
A21: Gaudianello | B21: 4
A22: Ferrarelle | B22: 4
A23: Uliveto | B23: 2
B25: prezzo | C25: calcio
A26: Centroid 1 | B26: 1.94757971 | C26: -0.482676016 | E26: I centroidi calcolati sui dati standardizzati devono essere riportati nella scala originaria
A27: Centroid 2 | B27: 1.18245911 | C27: 1.52622298
A28: Centroid 3 | B28: -0.5478905559 | C28: -0.5884155622
A29: Centroid 4 | B29: -0.07998988096 | C29: 1.00902135
A31: Centroide 1 | B31: =B26*dati!C$26+dati!C$25 -> 0.83 | C31: =C26*dati!D$26+dati!D$25 -> 36.45 | E31: Centroidi sulla scala originaria
A32: Centroide 2 | B32: =B27*dati!C$26+dati!C$25 -> 0.68 | C32: =C27*dati!D$26+dati!D$25 -> 246.0333333
A33: Centroide 3 | B33: =B28*dati!C$26+dati!C$25 -> 0.3407692308 | C33: =C28*dati!D$26+dati!D$25 -> 25.41846154
A34: Centroide 4 | B34: =B29*dati!C$26+dati!C$25 -> 0.4325 | C34: =C29*dati!D$26+dati!D$25 -> 192.075
